[Event "Championnat d'Europe de Blitz"]
[Date "2024.12.09"]
[White "Djukanovic, Mitar"]
[Black "Lagarde, Maxime"]
[WhiteElo "1943"]
[BlackElo "2600"]
[Round "1.14"]
[Result "0-1"]
[TimeControl "180+2"]

1. d4 {[%clk 00:03:02]} f5 {[%emt 00:00:01] [%clk 00:03:03]} 2. g4 {[%clk
00:03:02]} d5 {[%emt 00:00:05] [%clk 00:03:01]} 3. h3 {[%emt 00:00:02] [%clk
00:03:02]} c5 {[%emt 00:00:03] [%clk 00:03:00]} 4. Nc3 {[%emt 00:00:19] [%clk
00:02:45]} Nc6 {[%emt 00:00:04] [%clk 00:02:59]} 5. Bg2 {[%emt 00:00:05] [%clk
00:02:42]} cxd4 {[%emt 00:00:15] [%clk 00:02:46]} 6. Nxd5 {[%emt 00:00:27] [%clk
00:02:16]} e6 {[%emt 00:00:01] [%clk 00:02:47]} 7. Nf4 {[%emt 00:00:06] [%clk
00:02:12]} e5 {[%emt 00:00:02] [%clk 00:02:48]} 8. Nd3 {[%emt 00:00:17] [%clk
00:01:57]} e4 {[%emt 00:00:05] [%clk 00:02:45]} 9. Nf4 {[%emt 00:00:09] [%clk
00:01:49]} Nf6 {[%emt 00:00:02] [%clk 00:02:46]} 10. g5 {[%emt 00:00:09] [%clk
00:01:41]} Nd5 {[%emt 00:00:02] [%clk 00:02:47]} 11. Nxd5 {[%emt 00:00:14] [%clk
00:01:28]} Qxd5 {[%emt 00:00:02] [%clk 00:02:47]} 12. e3 {[%emt 00:00:05] [%clk
00:01:24]} Be6 {[%emt 00:00:26] [%clk 00:02:24]} 13. exd4 {[%emt 00:00:08] [%clk
00:01:19]} Qxd4 {[%emt 00:00:05] [%clk 00:02:21]} 14. c3 {[%emt 00:00:16] [%clk
00:01:04]} Qxd1+ {[%emt 00:00:06] [%clk 00:02:17]} 15. Kxd1 {[%emt 00:00:01]
[%clk 00:01:05]} O-O-O+ {[%emt 00:00:02] [%clk 00:02:17]} 16. Kc2 {[%emt
00:00:03] [%clk 00:01:05]} Bc5 {[%emt 00:00:07] [%clk 00:02:12]} 17. Be3 {[%emt
00:00:07] [%clk 00:01:00]} Bxe3 {[%emt 00:00:01] [%clk 00:02:12]} 18. fxe3
{[%emt 00:00:02] [%clk 00:01:01]} Ne5 {[%emt 00:00:01] [%clk 00:02:13]} 19. b3
{[%emt 00:00:10] [%clk 00:00:53]} Rd3 {[%emt 00:00:03] [%clk 00:02:12]} 20. Ne2
{[%emt 00:00:13] [%clk 00:00:42]} Rxe3 {[%emt 00:00:03] [%clk 00:02:11]} 21. Nd4
{[%emt 00:00:01] [%clk 00:00:43]} Bd7 {[%emt 00:00:04] [%clk 00:02:08]} 22. Rad1
{[%emt 00:00:08] [%clk 00:00:37]} Rg3 {[%emt 00:00:02] [%clk 00:02:08]} 23. Bf1
{[%emt 00:00:14] [%clk 00:00:25]} Rxg5 {[%emt 00:00:11] [%clk 00:01:58]} 24. b4
{[%emt 00:00:03] [%clk 00:00:24]} Ba4+ {[%emt 00:00:07] [%clk 00:01:53]} 25. Nb3
{[%emt 00:00:03] [%clk 00:00:24]} Rd8 {[%emt 00:00:12] [%clk 00:01:43]} 26.
Rxd8+ {[%emt 00:00:05] [%clk 00:00:21]} Kxd8 {[%emt 00:00:01] [%clk 00:01:43]}
27. h4 {[%emt 00:00:01] [%clk 00:00:22]} Rg3 {[%emt 00:00:03] [%clk 00:01:43]}
28. Rh2 {[%emt 00:00:06] [%clk 00:00:18]} Nf3 {[%emt 00:00:10] [%clk 00:01:35]}
29. Rf2 {[%emt 00:00:03] [%clk 00:00:17]} e3 {[%emt 00:00:06] [%clk 00:01:31]}
30. Re2 {[%emt 00:00:02] [%clk 00:00:16]} f4 {[%emt 00:00:03] [%clk 00:01:30]}
31. Kd3 {[%emt 00:00:04] [%clk 00:00:14]} Bxb3 {[%emt 00:00:14] [%clk 00:01:18]}
32. axb3 {[%clk 00:00:15]} Nxh4 {[%emt 00:00:03] [%clk 00:01:18]} 33. Ke4 {[%emt
00:00:04] [%clk 00:00:12]} g5 {[%clk 00:01:18]} 0-1

[Site "Europe Echecs"]

[Event "Championnat d'Europe de Blitz"]
[Date "2024.12.09"]
[White "Skreno, Vladimir"]
[Black "Alonso Rosell, Alvar"]
[WhiteElo "2067"]
[BlackElo "2532"]
[Round "1.16"]
[Result "0-1"]
[TimeControl "180+2"]

1. d4 {[%emt 00:00:02] [%clk 00:03:02]} Nf6 {[%emt 00:00:10] [%clk 00:03:03]} 2.
Nf3 {[%clk 00:03:02]} c5 {[%clk 00:03:04]} 3. c3 {[%clk 00:03:03]} Qc7 {[%clk
00:03:03]} 4. g3 {[%emt 00:00:25] [%clk 00:02:39]} g6 {[%emt 00:00:07] [%clk
00:02:58]} 5. Bg2 {[%emt 00:00:03] [%clk 00:02:38]} Bg7 {[%emt 00:00:01] [%clk
00:02:58]} 6. O-O {[%emt 00:00:02] [%clk 00:02:38]} O-O {[%emt 00:00:02] [%clk
00:02:58]} 7. Re1 {[%emt 00:00:23] [%clk 00:02:17]} d5 {[%emt 00:00:14] [%clk
00:02:46]} 8. Bf4 {[%emt 00:00:04] [%clk 00:02:15]} Qb6 {[%emt 00:00:05] [%clk
00:02:44]} 9. Qb3 {[%emt 00:00:07] [%clk 00:02:10]} Nc6 {[%emt 00:00:02] [%clk
00:02:45]} 10. Nbd2 {[%emt 00:00:13] [%clk 00:01:58]} Qa5 {[%emt 00:00:05] [%clk
00:02:41]} 11. dxc5 {[%emt 00:00:07] [%clk 00:01:53]} Qxc5 {[%emt 00:00:04]
[%clk 00:02:39]} 12. e4 {[%emt 00:00:25] [%clk 00:01:31]} dxe4 {[%emt 00:00:16]
[%clk 00:02:25]} 13. Nxe4 {[%emt 00:00:01] [%clk 00:01:31]} Nxe4 {[%emt
00:00:03] [%clk 00:02:25]} 14. Rxe4 {[%emt 00:00:03] [%clk 00:01:31]} e5 {[%emt
00:00:12] [%clk 00:02:14]} 15. Be3 {[%emt 00:00:12] [%clk 00:01:20]} Qe7 {[%emt
00:00:01] [%clk 00:02:15]} 16. Bg5 {[%emt 00:00:11] [%clk 00:01:11]} Qc7 {[%emt
00:00:04] [%clk 00:02:14]} 17. Ree1 {[%emt 00:00:05] [%clk 00:01:08]} Be6 {[%emt
00:00:08] [%clk 00:02:08]} 18. Qc2 {[%emt 00:00:03] [%clk 00:01:07]} h6 {[%emt
00:00:02] [%clk 00:02:07]} 19. Be3 {[%emt 00:00:02] [%clk 00:01:08]} Rad8 {[%emt
00:00:08] [%clk 00:02:01]} 20. Red1 {[%emt 00:00:02] [%clk 00:01:07]} a6 {[%emt
00:00:21] [%clk 00:01:43]} 21. Bc5 {[%emt 00:00:07] [%clk 00:01:03]} Rfe8 {[%emt
00:00:02] [%clk 00:01:42]} 22. Rxd8 {[%emt 00:00:14] [%clk 00:00:51]} Rxd8
{[%emt 00:00:01] [%clk 00:01:43]} 23. Ba3 {[%emt 00:00:05] [%clk 00:00:48]} f5
{[%emt 00:00:19] [%clk 00:01:26]} 24. Rd1 {[%emt 00:00:12] [%clk 00:00:38]} e4
{[%emt 00:00:15] [%clk 00:01:14]} 25. Rxd8+ {[%emt 00:00:14] [%clk 00:00:26]}
Qxd8 {[%emt 00:00:01] [%clk 00:01:14]} 26. Ne1 {[%emt 00:00:06] [%clk 00:00:22]}
Qd5 {[%emt 00:00:06] [%clk 00:01:10]} 27. b3 {[%emt 00:00:04] [%clk 00:00:20]}
Qa5 {[%emt 00:00:02] [%clk 00:01:10]} 28. Bb4 {[%emt 00:00:07] [%clk 00:00:15]}
Nxb4 {[%emt 00:00:05] [%clk 00:01:08]} 29. cxb4 {[%emt 00:00:01] [%clk
00:00:16]} Qxb4 {[%clk 00:01:09]} 30. Qc1 {[%emt 00:00:06] [%clk 00:00:12]} Qa5
{[%emt 00:00:09] [%clk 00:01:01]} 31. Bf1 {[%emt 00:00:05] [%clk 00:00:09]} b5
{[%emt 00:00:06] [%clk 00:00:57]} 32. a4 {[%emt 00:00:05] [%clk 00:00:07]} Qc3
{[%emt 00:00:17] [%clk 00:00:41]} 33. Qxc3 {[%emt 00:00:02] [%clk 00:00:07]}
Bxc3 {[%emt 00:00:01] [%clk 00:00:42]} 34. axb5 {[%clk 00:00:08]} axb5 {[%emt
00:00:04] [%clk 00:00:39]} 35. Ng2 {[%emt 00:00:04] [%clk 00:00:07]} b4 {[%emt
00:00:03] [%clk 00:00:38]} 36. Nf4 {[%emt 00:00:03] [%clk 00:00:06]} Bxb3 {[%emt
00:00:03] [%clk 00:00:37]} 37. Nxg6 {[%emt 00:00:02] [%clk 00:00:06]} Bf7 {[%emt
00:00:04] [%clk 00:00:35]} 38. Ne7+ {[%emt 00:00:02] [%clk 00:00:07]} Kf8 {[%clk
00:00:36]} 39. Nxf5 {[%emt 00:00:02] [%clk 00:00:07]} b3 {[%emt 00:00:01] [%clk
00:00:37]} 0-1

[Site "Europe Echecs"]

[Event "Championnat d'Europe de Blitz"]
[Date "2024.12.09"]
[White "Pantsulaia, Levan"]
[Black "Wyss, Jonas"]
[WhiteElo "2522"]
[BlackElo "2270"]
[Round "1.17"]
[Result "1-0"]
[TimeControl "180+2"]

1. Nf3 {[%emt 00:08:04] [%clk 00:03:02]} d5 {[%emt 00:00:01] [%clk 00:03:03]} 2.
c4 {[%emt 00:00:01] [%clk 00:03:03]} e6 {[%emt 00:00:02] [%clk 00:03:04]} 3. g3
{[%emt 00:00:01] [%clk 00:03:03]} Nf6 {[%emt 00:00:03] [%clk 00:03:03]} 4. Bg2
{[%clk 00:03:04]} dxc4 {[%emt 00:00:08] [%clk 00:02:58]} 5. Qa4+ {[%emt
00:00:01] [%clk 00:03:05]} Bd7 {[%emt 00:00:03] [%clk 00:02:58]} 6. Qxc4 {[%emt
00:00:01] [%clk 00:03:06]} c5 {[%emt 00:00:10] [%clk 00:02:50]} 7. Ne5 {[%emt
00:00:01] [%clk 00:03:06]} Qc8 {[%emt 00:00:27] [%clk 00:02:25]} 8. Qd3 {[%emt
00:00:02] [%clk 00:03:07]} Nc6 {[%emt 00:00:13] [%clk 00:02:14]} 9. Nxd7 {[%emt
00:00:01] [%clk 00:03:07]} Nxd7 {[%emt 00:00:07] [%clk 00:02:09]} 10. Qb5 {[%emt
00:00:08] [%clk 00:03:01]} Nd4 {[%emt 00:00:20] [%clk 00:01:51]} 11. Qa4 {[%emt
00:00:04] [%clk 00:03:00]} Be7 {[%emt 00:00:13] [%clk 00:01:39]} 12. Nc3 {[%emt
00:00:14] [%clk 00:02:48]} O-O {[%emt 00:00:06] [%clk 00:01:35]} 13. d3 {[%emt
00:00:02] [%clk 00:02:48]} Nb6 {[%emt 00:00:08] [%clk 00:01:29]} 14. Qd1 {[%emt
00:00:03] [%clk 00:02:47]} Rd8 {[%emt 00:00:03] [%clk 00:01:28]} 15. O-O {[%emt
00:00:08] [%clk 00:02:41]} Qd7 {[%emt 00:00:06] [%clk 00:01:25]} 16. b3 {[%emt
00:00:52] [%clk 00:01:51]} Rac8 {[%emt 00:00:02] [%clk 00:01:24]} 17. Bb2 {[%emt
00:00:01] [%clk 00:01:52]} Bf6 {[%emt 00:00:12] [%clk 00:01:14]} 18. Qd2 {[%emt
00:00:31] [%clk 00:01:24]} Nc6 {[%emt 00:00:04] [%clk 00:01:12]} 19. Ne4 {[%emt
00:00:07] [%clk 00:01:19]} Bxb2 {[%emt 00:00:07] [%clk 00:01:07]} 20. Qxb2
{[%emt 00:00:02] [%clk 00:01:18]} Qd4 {[%emt 00:00:12] [%clk 00:00:57]} 21. Rab1
{[%emt 00:00:07] [%clk 00:01:13]} Nd5 {[%emt 00:00:08] [%clk 00:00:51]} 22. Rfc1
{[%emt 00:00:03] [%clk 00:01:12]} b6 {[%emt 00:00:12] [%clk 00:00:41]} 23. a3
{[%emt 00:00:04] [%clk 00:01:10]} Qxb2 {[%emt 00:00:12] [%clk 00:00:32]} 24.
Rxb2 {[%emt 00:00:01] [%clk 00:01:11]} Nd4 {[%emt 00:00:01] [%clk 00:00:32]} 25.
Kf1 {[%emt 00:00:13] [%clk 00:01:00]} Kf8 {[%emt 00:00:02] [%clk 00:00:32]} 26.
Nd2 {[%emt 00:00:30] [%clk 00:00:32]} Ke7 {[%emt 00:00:05] [%clk 00:00:29]} 27.
Nc4 {[%clk 00:00:33]} Nc6 {[%emt 00:00:14] [%clk 00:00:17]} 28. e3 {[%emt
00:00:07] [%clk 00:00:28]} f6 {[%emt 00:00:03] [%clk 00:00:16]} 29. Ke2 {[%clk
00:00:29]} e5 {[%emt 00:00:02] [%clk 00:00:16]} 30. Rbc2 {[%emt 00:00:01] [%clk
00:00:29]} Rc7 {[%emt 00:00:05] [%clk 00:00:13]} 31. Nd2 {[%emt 00:00:04] [%clk
00:00:27]} Na5 {[%emt 00:00:04] [%clk 00:00:12]} 32. b4 {[%emt 00:00:03] [%clk
00:00:26]} Nb7 {[%emt 00:00:03] [%clk 00:00:11]} 33. Nb3 {[%emt 00:00:01] [%clk
00:00:27]} Rdc8 {[%emt 00:00:03] [%clk 00:00:10]} 34. Bxd5 {[%emt 00:00:01]
[%clk 00:00:27]} 1-0

[Site "Europe Echecs"]

[Event "Championnat d'Europe de Blitz"]
[Date "2024.12.09"]
[White "Smolin, Sergey"]
[Black "Muradli, Mahammad"]
[WhiteElo "2009"]
[BlackElo "2588"]
[Round "1.18"]
[Result "0-1"]
[TimeControl "180+2"]

1. e4 {[%emt 14:23:45]} c5 {[%clk 00:03:02]} 2. Nc3 {[%emt 00:00:01] [%clk
00:03:03]} d6 {[%emt 00:00:03] [%clk 00:03:02]} 3. f4 {[%emt 00:00:02] [%clk
00:03:03]} g6 {[%emt 00:00:01] [%clk 00:03:02]} 4. Nf3 {[%emt 00:00:01] [%clk
00:03:04]} Bg7 {[%clk 00:03:03]} 5. Bb5+ {[%emt 00:00:04] [%clk 00:03:02]} Bd7
{[%emt 00:00:02] [%clk 00:03:04]} 6. Bxd7+ {[%emt 00:00:02] [%clk 00:03:02]}
Qxd7 {[%emt 00:00:03] [%clk 00:03:03]} 7. O-O {[%emt 00:00:01] [%clk 00:03:02]}
Nc6 {[%emt 00:00:02] [%clk 00:03:04]} 8. d3 {[%clk 00:03:04]} e6 {[%emt
00:00:38] [%clk 00:02:27]} 9. Qe1 {[%emt 00:00:07] [%clk 00:02:59]} Nge7 {[%emt
00:00:05] [%clk 00:02:25]} 10. b3 {[%emt 00:00:26] [%clk 00:02:35]} Nd4 {[%emt
00:00:08] [%clk 00:02:19]} 11. Rf2 {[%emt 00:00:02] [%clk 00:02:36]} O-O {[%emt
00:00:10] [%clk 00:02:10]} 12. Bb2 {[%clk 00:02:37]} Rac8 {[%emt 00:00:02] [%clk
00:02:11]} 13. Nd1 {[%emt 00:00:23] [%clk 00:02:16]} f5 {[%emt 00:00:19] [%clk
00:01:54]} 14. e5 {[%emt 00:00:06] [%clk 00:02:11]} Nec6 {[%emt 00:00:09] [%clk
00:01:48]} 15. exd6 {[%emt 00:00:33] [%clk 00:01:39]} Qxd6 {[%emt 00:00:02]
[%clk 00:01:49]} 16. c3 {[%emt 00:00:22] [%clk 00:01:19]} Nxf3+ {[%emt 00:00:03]
[%clk 00:01:48]} 17. Rxf3 {[%clk 00:01:20]} e5 {[%emt 00:00:03] [%clk 00:01:48]}
18. Qf1 {[%emt 00:00:54] [%clk 00:00:28]} exf4 {[%emt 00:00:07] [%clk 00:01:42]}
19. Rxf4 {[%emt 00:00:01] [%clk 00:00:29]} Ne5 {[%clk 00:01:43]} 20. d4 {[%emt
00:00:05] [%clk 00:00:27]} cxd4 {[%emt 00:00:05] [%clk 00:01:40]} 21. Rxd4
{[%emt 00:00:11] [%clk 00:00:18]} Qb6 {[%emt 00:00:14] [%clk 00:01:28]} 22. Kh1
{[%clk 00:00:19]} Ng4 {[%emt 00:00:06] [%clk 00:01:23]} 23. Rf4 {[%emt 00:00:15]
[%clk 00:00:06]} Rcd8 {[%emt 00:00:02] [%clk 00:01:24]} 24. Nf2 {[%emt 00:00:08]
[%clk 00:03:02]} 0-1

[Site "Europe Echecs"]

[Event "Championnat d'Europe de Blitz"]
[Date "2024.12.09"]
[White "Dardha, Daniel"]
[Black "Sarabando, Rodrigo Andias"]
[WhiteElo "2639"]
[BlackElo "2081"]
[Round "1.19"]
[Result "1-0"]
[TimeControl "180+2"]

1. Nc3 {[%emt 00:00:12] [%clk 00:03:00]} c5 {[%clk 00:03:00]} 2. e4 {[%clk
00:03:00]} e6 {[%clk 00:03:01]} 3. Nge2 {[%emt 00:00:02] [%clk 00:03:00]} d6
{[%emt 00:00:11] [%clk 00:03:01]} 4. g3 {[%clk 00:02:58]} Nc6 {[%clk 00:03:00]}
5. Bg2 {[%clk 00:02:59]} g6 {[%clk 00:03:01]} 6. d4 {[%emt 00:00:02] [%clk
00:02:58]} cxd4 {[%emt 00:00:05] [%clk 00:02:58]} 7. Nxd4 {[%emt 00:00:02] [%clk
00:02:58]} Bg7 {[%emt 00:00:02] [%clk 00:02:58]} 8. Ndb5 {[%emt 00:00:10] [%clk
00:02:50]} Bf8 {[%emt 00:00:43] [%clk 00:02:18]} 9. Bf4 {[%emt 00:00:02] [%clk
00:02:49]} Ne5 {[%emt 00:00:12] [%clk 00:02:08]} 10. Qe2 {[%emt 00:00:30] [%clk
00:02:20]} a6 {[%emt 00:00:03] [%clk 00:02:08]} 11. O-O-O {[%emt 00:00:02] [%clk
00:02:19]} Qb6 {[%emt 00:00:36] [%clk 00:01:35]} 12. Be3 {[%emt 00:00:18] [%clk
00:02:03]} Qc6 {[%emt 00:00:01] [%clk 00:01:36]} 13. Na7 {[%emt 00:00:39] [%clk
00:01:26]} Qc7 {[%emt 00:00:02] [%clk 00:01:36]} 14. Nxc8 {[%emt 00:00:20] [%clk
00:01:09]} Rxc8 {[%emt 00:00:01] [%clk 00:01:37]} 15. Bd4 {[%emt 00:00:04] [%clk
00:01:07]} f6 {[%emt 00:00:09] [%clk 00:01:29]} 16. Bh3 {[%emt 00:00:02] [%clk
00:01:07]} Kf7 {[%emt 00:00:03] [%clk 00:01:29]} 17. f4 {[%emt 00:00:03] [%clk
00:01:06]} Nc4 {[%emt 00:00:01] [%clk 00:01:29]} 18. f5 {[%emt 00:00:02] [%clk
00:01:06]} e5 {[%emt 00:00:10] [%clk 00:01:21]} 19. fxg6+ {[%emt 00:00:21] [%clk
00:00:46]} hxg6 {[%emt 00:00:02] [%clk 00:01:22]} 20. Bxc8 {[%emt 00:00:02]
[%clk 00:00:47]} exd4 {[%emt 00:00:22] [%clk 00:01:02]} 21. Rxd4 {[%emt
00:00:02] [%clk 00:00:46]} Bh6+ {[%emt 00:00:01] [%clk 00:01:02]} 22. Kb1 {[%emt
00:00:05] [%clk 00:00:43]} Na3+ {[%emt 00:00:05] [%clk 00:01:00]} 23. bxa3
{[%emt 00:00:03] [%clk 00:00:42]} Qxc3 {[%emt 00:00:18] [%clk 00:00:44]} 24.
Qc4+ {[%emt 00:00:02] [%clk 00:00:43]} Qxc4 {[%emt 00:00:06] [%clk 00:00:40]}
25. Rxc4 {[%emt 00:00:01] [%clk 00:00:44]} b5 {[%emt 00:00:04] [%clk 00:00:38]}
26. Rc7+ {[%emt 00:00:08] [%clk 00:00:37]} Ne7 {[%emt 00:00:02] [%clk 00:00:38]}
27. Bxa6 {[%emt 00:00:01] [%clk 00:00:37]} Ra8 {[%emt 00:00:06] [%clk 00:00:35]}
28. Bxb5 {[%emt 00:00:03] [%clk 00:00:36]} Rxa3 {[%emt 00:00:02] [%clk
00:00:35]} 29. Bc4+ {[%emt 00:00:01] [%clk 00:00:37]} Ke8 {[%emt 00:00:09] [%clk
00:00:28]} 30. Rd1 {[%emt 00:00:02] [%clk 00:00:37]} Kd8 {[%emt 00:00:15] [%clk
00:00:15]} 31. Rb7 {[%emt 00:00:01] [%clk 00:00:38]} Nc8 {[%emt 00:00:02] [%clk
00:00:15]} 32. Be6 {[%clk 00:00:39]} Ra6 {[%emt 00:00:04] [%clk 00:00:13]} 33.
c4 {[%emt 00:00:10] [%clk 00:00:32]} Be3 {[%emt 00:00:03] [%clk 00:00:11]} 34.
h4 {[%emt 00:00:03] [%clk 00:00:30]} Bc5 {[%emt 00:00:05] [%clk 00:00:08]} 35.
e5 {[%emt 00:00:04] [%clk 00:00:29]} fxe5 {[%emt 00:00:02] [%clk 00:00:08]} 36.
Rf1 {[%emt 00:00:01] [%clk 00:00:30]} Rb6+ {[%emt 00:00:02] [%clk 00:00:09]} 37.
Rxb6 {[%clk 00:00:31]} Nxb6 {[%emt 00:00:02] [%clk 00:00:10]} 38. g4 {[%emt
00:00:01] [%clk 00:00:31]} Na4 {[%emt 00:00:03] [%clk 00:00:09]} 39. Kc2 {[%emt
00:00:01] [%clk 00:00:32]} Bd4 {[%emt 00:00:02] [%clk 00:00:09]} 40. h5 {[%emt
00:00:01] [%clk 00:00:32]} gxh5 {[%emt 00:00:02] [%clk 00:00:09]} 41. gxh5
{[%emt 00:00:01] [%clk 00:00:33]} Ke7 {[%emt 00:00:06] [%clk 00:00:06]} 42. Bd5
{[%emt 00:00:01] [%clk 00:00:34]} Nc3 {[%emt 00:00:02] [%clk 00:00:05]} 43. Kd3
{[%emt 00:00:12] [%clk 00:00:24]} Nxd5 {[%emt 00:00:05] [%clk 00:00:03]} 44.
cxd5 {[%clk 00:00:25]} Bb2 {[%emt 00:00:01] [%clk 00:00:04]} 45. Ke4 {[%emt
00:00:02] [%clk 00:00:25]} Bc3 {[%emt 00:00:02] [%clk 00:00:04]} 46. h6 {[%emt
00:00:01] [%clk 00:00:26]} 1-0

[Site "Europe Echecs"]

[Event "Championnat d'Europe de Blitz"]
[Date "2024.12.09"]
[White "Froewis, Annika"]
[Black "Kazakouski, Valery"]
[WhiteElo "2069"]
[BlackElo "2567"]
[Round "1.20"]
[Result "0-1"]
[TimeControl "180+2"]

1. e4 {[%emt 00:25:41]} c5 {[%clk 00:03:04]} 2. Nf3 {[%clk 00:03:04]} a6 {[%clk
00:03:05]} 3. c3 {[%clk 00:03:05]} e6 {[%clk 00:03:06]} 4. d4 {[%clk 00:03:04]}
d5 {[%clk 00:03:07]} 5. exd5 {[%emt 00:00:19] [%clk 00:02:45]} exd5 {[%emt
00:00:02] [%clk 00:03:08]} 6. Be2 {[%emt 00:00:15] [%clk 00:02:32]} Nc6 {[%emt
00:00:05] [%clk 00:03:05]} 7. O-O {[%emt 00:00:03] [%clk 00:02:30]} h6 {[%emt
00:00:04] [%clk 00:03:04]} 8. Re1 {[%emt 00:00:21] [%clk 00:02:10]} Be6 {[%emt
00:00:01] [%clk 00:03:05]} 9. Be3 {[%emt 00:00:07] [%clk 00:02:05]} c4 {[%emt
00:00:07] [%clk 00:03:01]} 10. Nbd2 {[%emt 00:00:18] [%clk 00:01:49]} Bd6 {[%emt
00:00:04] [%clk 00:02:59]} 11. b3 {[%emt 00:00:26] [%clk 00:01:25]} b5 {[%emt
00:00:01] [%clk 00:03:00]} 12. Qc2 {[%emt 00:00:09] [%clk 00:01:18]} Nge7 {[%emt
00:00:02] [%clk 00:03:00]} 13. Nf1 {[%emt 00:00:19] [%clk 00:01:01]} Bf5 {[%emt
00:00:05] [%clk 00:02:57]} 14. Qd2 {[%emt 00:00:03] [%clk 00:01:00]} O-O {[%emt
00:00:06] [%clk 00:02:53]} 15. Ng3 {[%emt 00:00:03] [%clk 00:00:59]} Bh7 {[%emt
00:00:07] [%clk 00:02:48]} 16. Nh4 {[%emt 00:00:15] [%clk 00:00:46]} Qd7 {[%emt
00:00:25] [%clk 00:02:25]} 17. Nf3 {[%emt 00:00:12] [%clk 00:00:36]} Qc7 {[%emt
00:00:21] [%clk 00:02:06]} 18. Bd1 {[%emt 00:00:09] [%clk 00:00:29]} f5 {[%emt
00:00:08] [%clk 00:02:00]} 19. Qe2 {[%emt 00:00:17] [%clk 00:00:15]} f4 {[%emt
00:00:04] [%clk 00:01:58]} 20. Bc1 {[%emt 00:00:09] [%clk 00:00:07]} fxg3 {[%emt
00:00:03] [%clk 00:01:57]} 21. hxg3 {[%emt 00:00:01] [%clk 00:00:08]} Qd7 {[%emt
00:00:10] [%clk 00:01:49]} 22. Bb2 {[%emt 00:00:04] [%clk 00:00:07]} Rae8 {[%emt
00:00:03] [%clk 00:01:48]} 23. Qd2 {[%emt 00:00:01] [%clk 00:00:07]} Be4 {[%emt
00:00:06] [%clk 00:01:43]} 24. a4 {[%emt 00:00:03] [%clk 00:00:07]} Qf5 {[%emt
00:00:10] [%clk 00:01:35]} 25. axb5 {[%emt 00:00:05] [%clk 00:00:04]} axb5
{[%emt 00:00:01] [%clk 00:01:36]} 26. bxc4 {[%emt 00:00:02] [%clk 00:00:04]}
bxc4 {[%emt 00:00:01] [%clk 00:01:37]} 27. Ra6 {[%emt 00:00:04] [%clk 00:00:03]}
Ra8 {[%emt 00:00:08] [%clk 00:01:30]} 28. Rb6 {[%emt 00:00:02] [%clk 00:00:00]}
0-1

[Site "Europe Echecs"]